[Event "NOR-chT Codanserien 2017-18"]
[Site "Oslo"]
[Date "2018.01.14"]
[Round "6"]
[White "Gudbrandsen, Gustav"]
[Black "Muhseen Abdullah Mohammed"]
[Result "1/2-1/2"]
[ECO "B12"]
[WhiteElo "2235"]
[BlackElo "2207"]
[Annotator "ChessBase"]
[PlyCount "87"]
[EventDate "2018.??.??"]
[EventType "team-tourn"]
[EventCountry "NOR"]
[SourceTitle "playchess.com"]
[Source "ChessBase"]
[SourceQuality "1"]
[TimeControl "40/5400+30:1800+30"]

1. e4 {[%emt 0:00:00]} c6 {[%emt 0:13:52]} 2. d4 {[%emt 0:03:53]} g6 {[%emt 0:00:08]} 3. Nf3 {[%emt 0:00:42]} d5 {[%emt 0:01:24]} 4. e5 {[%emt 0:01:35]} Bg7 {[%emt 0:00:51]} 5. Be2 {[%emt 0:00:41]} f6 {[%emt 0:00:16]} 6. exf6 {[%emt 0:01:58]} exf6 {[%emt 0:03:40]} 7. O-O {[%emt 0:02:26]} Ne7 {[%emt 0:00:04]} 8. Re1 {[%emt 0:01:55]} O-O {[%emt 0:00:07]} 9. b3 {[%emt 0:01:55]} Re8 {[%emt 0:03:42]} 10. Nbd2 {[%emt 0:04:51]} Nd7 {[%emt 0:03:08]} 11. Bd3 {[%emt 0:11:58]} Nf8 {[%emt 0:01:06]} 12. Nf1 {[%emt 0:01:54]} Be6 {[%emt 0:05:13]} 13. Ng3 {[%emt 0:02:18]} Qd7 {[%emt 0:03:42]} 14. Ba3 {[%emt 0:05:10]} Bf7 {[%emt 0:10:38]} 15. Qd2 {[%emt 0:03:31]} g5 {[%emt 0:07:03]} 16. Bxe7 {[%emt 0:05:42]} Rxe7 {[%emt 0:00:07]} 17. Rxe7 {[%emt 0:00:18]} Qxe7 {[%emt 0:00:06]} 18. Nf5 {[%emt 0:00:14]} Qd7 {[%emt 0:00:09]} 19. h4 {[%emt 0:05:27]} g4 {[%emt 0:07:12]} 20. Nh2 {[%emt 0:00:23]} h5 {[%emt 0:02:13]} 21. Nf1 {[%emt 0:03:06]} Ng6 {[%emt 0:02:49]} 22. N1g3 {[%emt 0:01:50]} Ne7 {[%emt 0:03:56]} 23. Nh6+ {[%emt 0:03:36]} Kf8 {[%emt 0:02:05]} 24. Nxf7 {[%emt 0:05:52]} Kxf7 {[%emt 0:00:24]} 25. Nxh5 {[%emt 0:02:00]} Rh8 {[%emt 0:00:07]} 26. Nxg7 {[%emt 0:00:54]} Rxh4 {[%emt 0:00:08]} 27. g3 {[%emt 0:03:57]} Rh8 {[%emt 0:00:21]} 28. Qf4 {[%emt 0:01:54]} Kxg7 {[%emt 0:00:27]} 29. Be2 {[%emt 0:01:38]} f5 {[%emt 0:04:21]} 30. Qe5+ {[%emt 0:01:18]} Kg8 {[%emt 0:00:02]} 31. Bd3 {[%emt 0:02:23]} Rh6 {[%emt 0:03:29]} 32. Qb8+ {[%emt 0:08:43]} Kf7 {[%emt 0:01:35]} 33. Re1 {[%emt 0:00:54]} a6 {[%emt 0:01:01]} 34. Kg2 {[%emt 0:04:16]} Ng6 {[%emt 0:03:33]} 35. Rh1 {[%emt 0:03:22]} Rxh1 {[%emt 0:00:24]} 36. Kxh1 {[%emt 0:00:06]} Kf6 {[%emt 0:00:32]} 37. Qg8 {[%emt 0:02:25]} Qe7 {[%emt 0:02:09]} 38. Kg2 {[%emt 0:01:32]} Qd7 {[%emt 0:00:54]} 39. a4 {[%emt 0:00:45]} Qe7 {[%emt 0:01:12]} 40. a5 {[%emt 0:01:34]} Qd7 {[%emt 0:36:00]} 41. Kf1 {[%emt 0:30:58]} Qc7 {[%emt 0:01:11]} 42. b4 {[%emt 0:00:00]} Qd7 {[%emt 0:00:00]} 43. c3 {[%emt 0:00:00]} Kg5 {[%emt 0:00:00]} 44. Kg2 {[%emt 0:00:00]} 1/2-1/2

[Event "NOR-chT Codanserien 2017-18"]
[Site "Oslo"]
[Date "2018.01.14"]
[Round "6"]
[White "Trygstad, Kristian"]
[Black "Andersen, Oystein R"]
[Result "1/2-1/2"]
[ECO "B23"]
[WhiteElo "2229"]
[BlackElo "2074"]
[Annotator "ChessBase"]
[PlyCount "49"]
[EventDate "2018.??.??"]
[EventType "team-tourn"]
[EventCountry "NOR"]
[SourceTitle "playchess.com"]
[Source "ChessBase"]
[SourceQuality "1"]
[TimeControl "40/5400+30:1800+30"]

1. e4 {[%emt 0:00:00]} c5 {[%emt 0:00:11]} 2. Nc3 {[%emt 0:00:00]} Nc6 {[%emt 0:00:10]} 3. f4 {[%emt 0:00:00]} e6 {[%emt 0:01:07]} 4. Nf3 {[%emt 0:00:00]} d5 {[%emt 0:01:27]} 5. Bb5 {[%emt 0:00:08]} Nge7 {[%emt 0:02:00]} 6. exd5 {[%emt 0:00:20]} exd5 {[%emt 0:00:17]} 7. Qe2 {[%emt 0:00:07]} Qd6 {[%emt 0:15:24]} 8. O-O {[%emt 0:15:06]} Bg4 {[%emt 0:14:44]} 9. Bxc6+ {[%emt 0:19:07]} Qxc6 {[%emt 0:03:01]} 10. Qb5 {[%emt 0:02:30]} Bxf3 {[%emt 0:03:13]} 11. Rxf3 {[%emt 0:00:18]} Qxb5 {[%emt 0:01:25]} 12. Nxb5 {[%emt 0:00:09]} Kd7 {[%emt 0:00:58]} 13. d3 {[%emt 0:01:13]} g6 {[%emt 0:02:42]} 14. Bd2 {[%emt 0:04:15]} Bg7 {[%emt 0:05:12]} 15. c3 {[%emt 0:04:21]} Rhe8 {[%emt 0:01:36]} 16. Re1 {[%emt 0:02:23]} a6 {[%emt 0:04:00]} 17. Na3 {[%emt 0:00:07]} Nf5 {[%emt 0:00:38]} 18. Rff1 {[%emt 0:00:20]} b5 {[%emt 0:01:57]} 19. Nc2 {[%emt 0:00:32]} a5 {[%emt 0:04:27]} 20. g4 {[%emt 0:05:29]} Nd6 {[%emt 0:01:43]} 21. Be3 {[%emt 0:04:01]} Kc6 {[%emt 0:03:56]} 22. d4 {[%emt 0:06:20]} Nc4 {[%emt 0:07:17]} 23. Bc1 {[%emt 0:00:24]} b4 {[%emt 0:02:36]} 24. b3 {[%emt 0:07:16]} Na3 {[%emt 0:07:34]} 25. Nxa3 {[%emt 0:07:02]} 1/2-1/2

[Event "NOR-chT Codanserien 2017-18"]
[Site "Oslo"]
[Date "2018.01.14"]
[Round "6"]
[White "Svendsen, Bertil"]
[Black "Kakushadze, Ilia"]
[Result "1-0"]
[ECO "A46"]
[WhiteElo "2222"]
[BlackElo "2137"]
[Annotator "ChessBase"]
[PlyCount "81"]
[EventDate "2018.??.??"]
[EventType "team-tourn"]
[EventCountry "NOR"]
[SourceTitle "playchess.com"]
[Source "ChessBase"]
[SourceQuality "1"]
[TimeControl "40/5400+30:1800+30"]

1. d4 {[%emt 0:00:00]} Nf6 {[%emt 0:00:12]} 2. Nf3 {[%emt 0:00:02]} c5 {[%emt 0:00:35]} 3. c4 {[%emt 0:01:19]} cxd4 {[%emt 0:00:17]} 4. Nxd4 {[%emt 0:00:09]} e5 {[%emt 0:00:05]} 5. Nb5 {[%emt 0:00:32]} d5 {[%emt 0:00:05]} 6. cxd5 {[%emt 0:00:30]} Bc5 {[%emt 0:00:04]} 7. N5c3 {[%emt 0:01:58]} O-O {[%emt 0:03:26]} 8. g3 {[%emt 0:01:36]} Qb6 {[%emt 0:00:24]} 9. e3 {[%emt 0:00:54]} Bg4 {[%emt 0:00:05]} 10. Be2 {[%emt 0:00:25]} Bh3 {[%emt 0:02:10]} 11. a3 {[%emt 0:36:13]} a5 {[%emt 0:32:09]} 12. Nd2 {[%emt 0:07:00]} Qd8 {[%emt 0:04:04]} 13. Bf3 {[%emt 0:03:50]} Re8 {[%emt 0:10:59]} 14. Rg1 {[%emt 0:09:24]} Bf5 {[%emt 0:22:39]} 15. e4 {[%emt 0:02:43]} Qb6 {[%emt 0:03:47]} 16. Qe2 {[%emt 0:01:06]} Ng4 {[%emt 0:02:02]} 17. Rg2 {[%emt 0:01:50]} Nxf2 {[%emt 0:05:23]} 18. Rxf2 {[%emt 0:00:07]} Bh3 {[%emt 0:00:18]} 19. Nc4 {[%emt 0:02:59]} Bxf2+ {[%emt 0:00:23]} 20. Qxf2 {[%emt 0:00:07]} Qg6 {[%emt 0:01:51]} 21. Be3 {[%emt 0:06:38]} Nd7 {[%emt 0:00:03]} 22. Qe2 {[%emt 0:02:53]} f5 {[%emt 0:00:17]} 23. Bh5 {[%emt 0:00:22]} Qf6 {[%emt 0:00:10]} 24. Bxe8 {[%emt 0:00:21]} Rxe8 {[%emt 0:00:02]} 25. exf5 {[%emt 0:01:07]} Bxf5 {[%emt 0:00:27]} 26. a4 {[%emt 0:05:55]} Qg6 {[%emt 0:00:24]} 27. Kd2 {[%emt 0:02:34]} Rc8 {[%emt 0:01:31]} 28. Nxa5 {[%emt 0:04:59]} Nc5 {[%emt 0:03:37]} 29. Bxc5 {[%emt 0:01:27]} Rxc5 {[%emt 0:00:04]} 30. Nb3 {[%emt 0:00:58]} Qh6+ {[%emt 0:01:00]} 31. Ke1 {[%emt 0:00:39]} Rc8 {[%emt 0:01:27]} 32. Nd2 {[%emt 0:01:57]} e4 {[%emt 0:00:28]} 33. Nf1 {[%emt 0:00:56]} Qf6 {[%emt 0:01:15]} 34. Ne3 {[%emt 0:01:52]} Bh3 {[%emt 0:03:11]} 35. Rd1 {[%emt 0:00:19]} Rf8 {[%emt 0:00:41]} 36. d6 {[%emt 0:00:35]} Bd7 {[%emt 0:01:50]} 37. Rd2 {[%emt 0:01:16]} Rc8 {[%emt 0:00:40]} 38. Qf2 {[%emt 0:00:38]} Qe6 {[%emt 0:00:27]} 39. Ned5 {[%emt 0:00:28]} Kh8 {[%emt 0:00:55]} 40. Qe3 {[%emt 0:00:45]} Qxd6 {[%emt 0:30:22]} 41. Nb6 {[%emt 0:30:30]} 1-0

[Event "NOR-chT Codanserien 2017-18"]
[Site "Oslo"]
[Date "2018.01.14"]
[Round "6"]
[White "Hammerstad, Asmund"]
[Black "Mikalsen, Harald"]
[Result "1-0"]
[ECO "D35"]
[WhiteElo "2197"]
[BlackElo "2036"]
[Annotator "ChessBase"]
[PlyCount "70"]
[EventDate "2018.??.??"]
[EventType "team-tourn"]
[EventCountry "NOR"]
[SourceTitle "playchess.com"]
[Source "ChessBase"]
[SourceQuality "1"]
[TimeControl "40/5400+30:1800+30"]

1. d4 {[%emt 0:00:00]} Nf6 {[%emt 0:00:15]} 2. c4 {[%emt 0:00:00]} e6 {[%emt 0:01:15]} 3. Nc3 {[%emt 0:00:16]} d5 {[%emt 0:01:28]} 4. cxd5 {[%emt 0:05:37]} exd5 {[%emt 0:00:31]} 5. Bg5 {[%emt 0:00:40]} Be7 {[%emt 0:00:09]} 6. e3 {[%emt 0:00:40]} O-O {[%emt 0:09:37]} 7. Bd3 {[%emt 0:10:06]} c6 {[%emt 0:06:15]} 8. Qc2 {[%emt 0:00:42]} h6 {[%emt 0:00:51]} 9. Bh4 {[%emt 0:00:23]} Re8 {[%emt 0:02:24]} 10. Nf3 {[%emt 0:01:50]} Nbd7 {[%emt 0:08:59]} 11. h3 {[%emt 0:00:44]} Ne4 {[%emt 0:02:19]} 12. Bxe7 {[%emt 0:07:25]} Qxe7 {[%emt 0:00:12]} 13. Bxe4 {[%emt 0:00:12]} dxe4 {[%emt 0:00:11]} 14. Nd2 {[%emt 0:00:04]} Nf6 {[%emt 0:04:22]} 15. g4 {[%emt 0:11:28]} b6 {[%emt 0:04:10]} 16. O-O-O {[%emt 0:00:45]} Ba6 {[%emt 0:01:08]} 17. Qb3 {[%emt 0:07:09]} Bd3 {[%emt 0:05:55]} 18. Qa3 {[%emt 0:06:38]} c5 {[%emt 0:19:07]} 19. dxc5 {[%emt 0:03:24]} Rec8 {[%emt 0:00:59]} 20. Nb3 {[%emt 0:04:05]} Rc6 {[%emt 0:07:23]} 21. Rhg1 {[%emt 0:01:18]} Rac8 {[%emt 0:02:24]} 22. Nd4 {[%emt 0:11:50]} Rxc5 {[%emt 0:00:34]} 23. Kd2 {[%emt 0:00:16]} Qc7 {[%emt 0:08:25]} 24. f4 {[%emt 0:02:53]} b5 {[%emt 0:02:47]} 25. Rc1 {[%emt 0:01:01]} a5 {[%emt 0:03:56]} 26. b4 {[%emt 0:04:41]} axb4 {[%emt 0:02:02]} 27. Qxb4 {[%emt 0:00:09]} Qa7 {[%emt 0:04:42]} 28. a3 {[%emt 0:01:50]} Qd7 {[%emt 0:00:38]} 29. Nce2 {[%emt 0:06:48]} Rc4 {[%emt 0:01:20]} 30. Rxc4 {[%emt 0:00:26]} Rxc4 {[%emt 0:00:27]} 31. Qb3 {[%emt 0:00:39]} Qd5 {[%emt 0:00:41]} 32. Qb2 {[%emt 0:01:30]} Qc5 {[%emt 0:00:31]} 33. g5 {[%emt 0:01:18]} Nd5 {[%emt 0:00:30]} 34. gxh6 {[%emt 0:00:34]} g6 {[%emt 0:00:30]} 35. Rg5 {[%emt 0:01:25]} Qd6 {[%emt 0:00:00]} 1-0

[Event "NOR-chT Codanserien 2017-18"]
[Site "Oslo"]
[Date "2018.01.14"]
[Round "6"]
[White "Nordquelle, Daniel"]
[Black "Moen, Andreas"]
[Result "1-0"]
[ECO "C50"]
[WhiteElo "2196"]
[BlackElo "2322"]
[Annotator "ChessBase"]
[PlyCount "111"]
[EventDate "2018.??.??"]
[EventType "team-tourn"]
[EventCountry "NOR"]
[SourceTitle "playchess.com"]
[Source "ChessBase"]
[SourceQuality "1"]
[TimeControl "40/5400+30:1800+30"]

1. e4 {[%emt 0:00:00]} e5 {[%emt 0:03:35]} 2. Nf3 {[%emt 0:00:00]} Nc6 {[%emt 0:00:05]} 3. Bc4 {[%emt 0:00:00]} Nf6 {[%emt 0:00:09]} 4. d3 {[%emt 0:00:00]} Bc5 {[%emt 0:06:59]} 5. O-O {[%emt 0:00:25]} O-O {[%emt 0:04:09]} 6. Bg5 {[%emt 0:03:15]} h6 {[%emt 0:04:31]} 7. Bh4 {[%emt 0:00:13]} Be7 {[%emt 0:09:42]} 8. Re1 {[%emt 0:01:17]} d6 {[%emt 0:01:15]} 9. Nbd2 {[%emt 0:01:24]} Na5 {[%emt 0:14:38]} 10. c3 {[%emt 0:34:21]} Nxc4 {[%emt 0:07:22]} 11. Nxc4 {[%emt 0:00:45]} Re8 {[%emt 0:05:10]} 12. d4 {[%emt 0:07:29]} Be6 {[%emt 0:07:26]} 13. Ncd2 {[%emt 0:02:28]} Nd7 {[%emt 0:06:00]} 14. Bg3 {[%emt 0:09:45]} Bf6 {[%emt 0:03:05]} 15. h3 {[%emt 0:04:59]} c6 {[%emt 0:00:12]} 16. Nf1 {[%emt 0:00:06]} Qc7 {[%emt 0:05:58]} 17. Ne3 {[%emt 0:05:40]} Nf8 {[%emt 0:00:09]} 18. d5 {[%emt 0:01:53]} Bd7 {[%emt 0:00:39]} 19. Qd2 {[%emt 0:05:29]} Rad8 {[%emt 0:00:53]} 20. Rad1 {[%emt 0:00:08]} Bc8 {[%emt 0:00:20]} 21. b3 {[%emt 0:07:20]} Ng6 {[%emt 0:01:21]} 22. c4 {[%emt 0:00:25]} h5 {[%emt 0:05:03]} 23. Qd3 {[%emt 0:05:20]} a6 {[%emt 0:04:25]} 24. a4 {[%emt 0:00:09]} h4 {[%emt 0:03:00]} 25. Bh2 {[%emt 0:00:02]} c5 {[%emt 0:01:31]} 26. Ng4 {[%emt 0:02:15]} Be7 {[%emt 0:00:52]} 27. Nd2 {[%emt 0:00:15]} Rf8 {[%emt 0:00:22]} 28. Ne3 {[%emt 0:00:08]} Bg5 {[%emt 0:00:23]} 29. Ndf1 {[%emt 0:00:44]} Nf4 {[%emt 0:00:53]} 30. Bxf4 {[%emt 0:01:01]} Bxf4 {[%emt 0:00:30]} 31. Nf5 {[%emt 0:03:36]} Bg5 {[%emt 0:00:18]} 32. Nh2 {[%emt 0:01:44]} g6 {[%emt 0:00:30]} 33. Nf3 {[%emt 0:01:02]} Bf6 {[%emt 0:03:22]} 34. Ne3 {[%emt 0:01:49]} Kg7 {[%emt 0:00:02]} 35. Kh2 {[%emt 0:00:59]} Rh8 {[%emt 0:00:05]} 36. Rg1 {[%emt 0:00:07]} Rdf8 {[%emt 0:00:14]} 37. g4 {[%emt 0:01:04]} hxg3+ {[%emt 0:01:02]} 38. Rxg3 {[%emt 0:00:01]} Rh5 {[%emt 0:00:35]} 39. Ng4 {[%emt 0:01:19]} Rfh8 {[%emt 0:00:13]} 40. Ng1 {[%emt 0:00:14]} Bg5 {[%emt 0:31:30]} 41. Ne2 {[%emt 0:04:14]} Kf8 {[%emt 0:00:00]} 42. Qf3 {[%emt 0:07:24]} Qe7 {[%emt 0:00:00]} 43. b4 {[%emt 0:03:04]} cxb4 {[%emt 0:00:00]} 44. c5 {[%emt 0:00:09]} dxc5 {[%emt 0:00:00]} 45. d6 {[%emt 0:06:05]} Qe6 {[%emt 0:00:00]} 46. Rd5 {[%emt 0:00:11]} Bd7 {[%emt 0:00:00]} 47. Kg2 {[%emt 0:04:58]} Bh4 {[%emt 0:00:00]} 48. Rxe5 {[%emt 0:02:07]} Rxe5 {[%emt 0:00:00]} 49. Nf4 {[%emt 0:00:05]} Qxd6 {[%emt 0:00:00]} 50. Nxe5 {[%emt 0:03:48]} Bxg3 {[%emt 0:00:31]} 51. Nfxg6+ {[%emt 0:02:17]} Ke8 {[%emt 0:00:44]} 52. Qxf7+ {[%emt 0:00:34]} Kd8 {[%emt 0:00:01]} 53. Nxd7 {[%emt 0:00:40]} Rh6 {[%emt 0:04:56]} 54. Nf6 {[%emt 0:00:42]} Be5 {[%emt 0:02:10]} 55. Qe8+ {[%emt 0:00:20]} Kc7 {[%emt 0:00:07]} 56. Nd5+ {[%emt 0:00:08]} 1-0

[Event "NOR-chT Codanserien 2017-18"]
[Site "Oslo"]
[Date "2018.01.14"]
[Round "6"]
[White "Brasoy, Aksel"]
[Black "Mihajlov, Svetoslav"]
[Result "0-1"]
[ECO "A53"]
[WhiteElo "1937"]
[BlackElo "2178"]
[Annotator "ChessBase"]
[PlyCount "82"]
[EventDate "2018.??.??"]
[EventType "team-tourn"]
[EventCountry "NOR"]
[SourceTitle "playchess.com"]
[Source "ChessBase"]
[SourceQuality "1"]
[TimeControl "40/5400+30:1800+30"]

1. d4 {[%emt 0:00:00]} Nf6 {[%emt 0:00:11]} 2. c4 {[%emt 0:00:06]} d6 {[%emt 0:00:10]} 3. Nc3 {[%emt 0:01:33]} Bf5 {[%emt 0:00:09]} 4. Nf3 {[%emt 0:03:15]} g6 {[%emt 0:00:11]} 5. g3 {[%emt 0:01:26]} Ne4 {[%emt 0:00:13]} 6. Bd2 {[%emt 0:04:46]} Nxd2 {[%emt 0:02:03]} 7. Qxd2 {[%emt 0:09:30]} Bg7 {[%emt 0:00:09]} 8. Bg2 {[%emt 0:01:45]} Nc6 {[%emt 0:00:31]} 9. d5 {[%emt 0:03:08]} Na5 {[%emt 0:05:35]} 10. b3 {[%emt 0:01:44]} c5 {[%emt 0:00:12]} 11. Rc1 {[%emt 0:05:50]} O-O {[%emt 0:00:34]} 12. O-O {[%emt 0:00:37]} a6 {[%emt 0:00:21]} 13. Rfe1 {[%emt 0:07:00]} Bd7 {[%emt 0:22:15]} 14. Qd3 {[%emt 0:14:20]} Rb8 {[%emt 0:01:05]} 15. e4 {[%emt 0:00:19]} b5 {[%emt 0:01:51]} 16. e5 {[%emt 0:01:18]} bxc4 {[%emt 0:00:13]} 17. bxc4 {[%emt 0:00:16]} Bf5 {[%emt 0:08:29]} 18. Ne4 {[%emt 0:02:50]} dxe5 {[%emt 0:00:42]} 19. Qa3 {[%emt 0:01:47]} Bxe4 {[%emt 0:06:17]} 20. Rxe4 {[%emt 0:00:12]} Rb4 {[%emt 0:05:25]} 21. Bf1 {[%emt 0:03:50]} Qc7 {[%emt 0:09:43]} 22. Rce1 {[%emt 0:07:31]} f6 {[%emt 0:00:13]} 23. Qc1 {[%emt 0:06:22]} Nb7 {[%emt 0:00:40]} 24. Rh4 {[%emt 0:02:50]} Nd6 {[%emt 0:01:07]} 25. g4 {[%emt 0:03:11]} e4 {[%emt 0:02:41]} 26. Nd2 {[%emt 0:00:25]} f5 {[%emt 0:00:07]} 27. gxf5 {[%emt 0:01:23]} gxf5 {[%emt 0:00:09]} 28. Qd1 {[%emt 0:03:18]} Rf6 {[%emt 0:01:49]} 29. f3 {[%emt 0:01:24]} Rg6+ {[%emt 0:00:07]} 30. Kh1 {[%emt 0:00:10]} e3 {[%emt 0:02:30]} 31. Nb3 {[%emt 0:01:25]} Bh6 {[%emt 0:03:51]} 32. Bd3 {[%emt 0:01:58]} a5 {[%emt 0:08:20]} 33. Rg1 {[%emt 0:01:25]} Bg7 {[%emt 0:00:18]} 34. Rxg6 {[%emt 0:02:36]} hxg6 {[%emt 0:00:01]} 35. Qg1 {[%emt 0:01:09]} a4 {[%emt 0:01:21]} 36. Nc1 {[%emt 0:00:46]} Kf7 {[%emt 0:02:41]} 37. Qxe3 {[%emt 0:00:32]} Qd7 {[%emt 0:00:34]} 38. Qxc5 {[%emt 0:02:07]} Rb2 {[%emt 0:00:18]} 39. Qe3 {[%emt 0:01:00]} Nb7 {[%emt 0:02:30]} 40. Rh7 {[%emt 0:01:27]} Qd6 {[%emt 0:30:16]} 41. Qd4 {[%emt 0:26:43]} Rxh2+ {[%emt 0:00:00] Qe3 Rb2} 0-1